fUSD/lending_fUSD_20240714
["ID","MTS","AMOUNT","RATE_DAILY","PERIOD"]
[332167986,1720999834675,-500.0,0.00013698,2]
[332167987,1720999834688,-500.0,0.00013698,2]
[332167988,1720999834700,-500.0,0.00013698,2]
[332167989,1720999834713,-2434.51,0.00013698,2]
[332167990,1720999834724,-500.0,0.00013698,2]
[332167991,1720999834736,-500.0,0.00013698,2]
[332167992,1720999834746,-469.65,0.00013699,2]
[332167993,1720999834757,-250.0,0.00013699,2]
[332167994,1720999834768,-500.0,0.00013699,2]
[332167995,1720999834780,-293.42541875,0.00013721,2]
[332167996,1720999834792,-500.0,0.00013721,2]
[332167997,1720999834804,-500.0,0.00013721,2]
[332167998,1720999834814,-500.0,0.00013721,2]
[332167999,1720999834827,-500.0,0.00013721,2]
[332168000,1720999834840,-500.0,0.00013721,2]
[332168001,1720999834856,-500.0,0.00013721,2]
[332168002,1720999834868,-500.0,0.00013721,2]
[332168003,1720999834879,-272.100141,0.00013722,2]
[332168004,1720999834891,-183.357989,0.00013722,2]
[332168005,1720999834902,-234.66,0.00013725,2]
[332168006,1720999834915,-500.0,0.00013753,2]
[332168007,1720999834927,-500.0,0.00013753,2]
[332168008,1720999834940,-500.0,0.00013753,2]
[332168009,1720999834951,-569.8,0.00013753,2]
[332168010,1720999834963,-500.0,0.00013753,2]
[332168011,1720999834975,-549.3,0.00013753,2]
[332168012,1720999834986,-500.0,0.00013753,2]
[332168013,1720999834997,-500.0,0.00013753,2]
[332168014,1720999835009,-500.0,0.00013753,2]
[332168015,1720999835021,-500.0,0.00013753,2]
[332168016,1720999835033,-1375.7,0.00013753,2]
[332168017,1720999835045,-575.07,0.00013753,2]
[332168018,1720999835056,-674.94,0.00013753,2]
[332168019,1720999835067,-739.61,0.00013753,2]
[332168020,1720999835077,-500.0,0.00013753,2]
[332168021,1720999835087,-500.0,0.00013753,2]
[332168022,1720999835098,-500.0,0.00013753,2]
[332168023,1720999835110,-500.0,0.00013753,2]
[332168024,1720999835121,-369.43044199,0.00013759,2]
[332168025,1720999835132,-294.6914,0.0001376,2]
[332168026,1720999835143,-3762.1038,0.0001376,2]
[332168027,1720999835154,-1163.4179,0.0001376,2]
[332168028,1720999835166,-1000.0,0.00013762,2]
[332168029,1720999835177,-500.0,0.00013775,2]
[332168030,1720999835188,-500.0,0.00013775,2]
[332168031,1720999835199,-500.0,0.00013775,2]
[332168032,1720999835212,-500.0,0.00013775,2]
[332168033,1720999835224,-800.0,0.00013785,2]
[332168034,1720999835236,-207.60000002,0.000138,3]
[332168035,1720999835250,-500.0,0.00013808,2]
[332168036,1720999835263,-500.0,0.00013808,2]
[332168037,1720999835273,-500.0,0.00013808,2]
[332168038,1720999835284,-569.8,0.00013808,2]
[332168039,1720999835295,-500.0,0.00013808,2]
[332168040,1720999835305,-549.3,0.00013808,2]
[332168041,1720999835316,-503.48,0.00013808,2]
[332168042,1720999835330,-500.0,0.00013808,2]
[332168043,1720999835344,-500.0,0.00013808,2]
[332168044,1720999835356,-500.0,0.00013808,2]
[332168045,1720999835368,-1375.7,0.00013808,2]
[332168046,1720999835379,-575.07,0.00013808,2]
[332168047,1720999835391,-674.94,0.00013808,2]
[332168048,1720999835402,-739.61,0.00013808,2]
[332168049,1720999835411,-155.78236153,0.00013808,2]
[332168050,1720999835423,-500.0,0.00013808,2]
[332168051,1720999835434,-500.0,0.00013808,2]
[332168052,1720999835445,-500.0,0.00013808,2]
[332168053,1720999835456,-500.0,0.0001383,2]
[332168054,1720999835467,-500.0,0.0001383,2]
[332168055,1720999835479,-500.0,0.0001383,2]
[332168056,1720999835490,-500.0,0.0001383,2]
[332168057,1720999835500,-196.37015947,0.00013849,2]
[332168058,1720999835511,-622.80000006,0.00013849,3]
[332168059,1720999835521,-299.19694871,0.00013859,2]
[332168060,1720999835531,-500.0,0.00013859,2]
[332168061,1720999835542,-500.0,0.00013859,2]
[332168062,1720999835553,-500.0,0.00013859,2]
[332168063,1720999835565,-500.0,0.00013859,2]
[332168064,1720999835575,-500.0,0.00013859,2]
[332168065,1720999835586,-500.0,0.00013859,2]
[332168066,1720999835598,-195.50231431,0.00013859,2]
[332168067,1720999835609,-224.99346967,0.00013859,2]
[332168068,1720999835619,-500.0,0.00013859,2]
[332168069,1720999835631,-500.0,0.00013859,2]
[332168070,1720999835642,-500.0,0.00013859,2]
[332168071,1720999835652,-500.0,0.00013859,2]
[332168072,1720999835663,-500.0,0.00013859,2]
[332168073,1720999835674,-500.0,0.00013859,2]
[332168074,1720999835684,-500.0,0.00013859,2]
[332168075,1720999835695,-500.0,0.00013859,2]
[332168076,1720999835705,-500.0,0.00013859,2]
[332168077,1720999835715,-500.0,0.00013859,2]
[332168078,1720999835727,-150.0,0.00013859,2]
[332168079,1720999835737,-500.0,0.00013859,2]
[332168080,1720999835748,-500.0,0.00013859,2]
[332168081,1720999835758,-500.0,0.00013859,2]
[332168082,1720999835768,-500.0,0.00013859,2]
[332168083,1720999835779,-500.0,0.00013859,2]
[332168084,1720999835790,-500.0,0.00013859,2]
[332168085,1720999835801,-291.98761864,0.00013859,2]
[332168086,1720999835811,-500.0,0.00013859,2]
[332168087,1720999835822,-500.0,0.00013859,2]
[332168088,1720999835832,-500.0,0.00013859,2]
[332168089,1720999835844,-500.0,0.00013859,2]
[332168090,1720999835854,-500.0,0.00013859,2]
[332168091,1720999835864,-500.0,0.00013859,2]
[332168092,1720999835875,-500.0,0.00013859,2]
[332168093,1720999835885,-500.0,0.00013859,2]
[332168094,1720999835896,-500.0,0.00013859,2]
[332168095,1720999835906,-500.0,0.00013859,2]
[332168096,1720999835917,-500.0,0.00013859,2]
[332168097,1720999835927,-500.0,0.00013859,2]
[332168098,1720999835938,-500.0,0.00013859,2]
[332168099,1720999835948,-500.0,0.00013859,2]
[332168100,1720999835959,-512.91,0.00013859,2]
[332168101,1720999835970,-500.0,0.00013859,2]
[332168102,1720999835980,-500.0,0.00013859,2]
[332168103,1720999835991,-500.0,0.00013859,2]
[332168104,1720999836001,-500.0,0.00013859,2]
[332168105,1720999836012,-500.0,0.00013859,2]
[332168106,1720999836023,-500.0,0.00013859,2]
[332168107,1720999836033,-500.0,0.00013859,2]
[332168108,1720999836044,-500.0,0.00013859,2]
[332168109,1720999836054,-500.0,0.00013859,2]
[332168110,1720999836065,-500.0,0.00013859,2]
[332168111,1720999836075,-500.0,0.00013859,2]
[332168112,1720999836085,-500.0,0.00013859,2]
[332168113,1720999836097,-500.0,0.00013859,2]
[332168114,1720999836107,-500.0,0.00013859,2]
[332168115,1720999836117,-500.0,0.00013859,2]
[332168116,1720999836128,-500.0,0.00013859,2]
[332168117,1720999836138,-500.0,0.00013859,2]
[332168118,1720999836148,-500.0,0.00013859,2]
[332168119,1720999836159,-713.5,0.00013859,2]
[332168120,1720999836169,-500.0,0.00013859,2]
[332168121,1720999836179,-500.0,0.00013859,2]
[332168122,1720999836189,-500.0,0.00013859,2]
[332168123,1720999836201,-500.0,0.00013859,2]
[332168124,1720999836210,-500.0,0.00013859,2]
[332168125,1720999836220,-500.0,0.00013859,2]
[332168126,1720999836230,-315.54094827,0.00013859,2]
[332168127,1720999836241,-622.14378409,0.00013859,2]
[332168128,1720999836256,-500.0,0.00013859,2]
[332168129,1720999836267,-500.0,0.00013859,2]
[332168130,1720999836279,-500.0,0.00013859,2]
[332168131,1720999836290,-500.0,0.00013859,2]
[332168132,1720999836300,-500.0,0.00013859,2]
[332168133,1720999836311,-500.0,0.00013859,2]
[332168134,1720999836321,-500.0,0.00013859,2]
[332168135,1720999836332,-500.0,0.00013859,2]
[332168136,1720999836344,-500.0,0.00013859,2]
[332168137,1720999836355,-500.0,0.00013859,2]
[332168138,1720999836365,-531.48,0.00013859,2]
[332168139,1720999836375,-500.0,0.00013859,2]
[332168140,1720999836385,-500.0,0.00013859,2]
[332168141,1720999836395,-500.0,0.00013859,2]
[332168142,1720999836407,-500.0,0.00013859,2]
[332168143,1720999836419,-500.0,0.00013859,2]
[332168144,1720999836431,-500.0,0.00013859,2]
[332168145,1720999836442,-500.0,0.00013859,2]
[332168146,1720999836453,-500.0,0.00013859,2]
[332168147,1720999836464,-500.0,0.00013859,2]
[332168148,1720999836476,-500.0,0.00013859,2]
[332168149,1720999836486,-500.0,0.00013859,2]
[332168150,1720999836497,-500.0,0.00013859,2]
[332168151,1720999836507,-500.0,0.00013859,2]
[332168152,1720999836518,-500.0,0.00013859,2]
[332168153,1720999836530,-500.0,0.00013859,2]
[332168154,1720999836541,-500.0,0.00013859,2]
[332168155,1720999836551,-500.0,0.00013859,2]
[332168156,1720999836562,-565.3549265,0.00013859,2]
[332168157,1720999836574,-500.0,0.00013859,2]
[332168158,1720999836586,-500.0,0.00013859,2]
[332168159,1720999836599,-500.0,0.00013859,2]
[332168160,1720999836611,-525.70650638,0.00013859,2]
[332168161,1720999836624,-500.0,0.00013859,2]
[332168162,1720999836637,-500.0,0.00013859,2]
[332168163,1720999836649,-388.68348722,0.00013859,2]
[332168164,1720999836660,-500.0,0.00013859,2]
[332168165,1720999836671,-500.0,0.00013859,2]
[332168166,1720999836682,-500.0,0.00013859,2]
[332168167,1720999836693,-500.0,0.00013859,2]
[332168168,1720999836703,-407.10074156,0.00013859,2]
[332168169,1720999836713,-558.45,0.00013859,2]
[332168170,1720999836724,-500.0,0.00013859,2]
[332168171,1720999836734,-500.0,0.00013859,2]
[332168172,1720999836744,-500.0,0.00013859,2]
[332168173,1720999836755,-500.0,0.00013859,2]
[332168174,1720999836765,-500.0,0.00013859,2]
[332168175,1720999836775,-500.0,0.00013859,2]
[332168176,1720999836785,-500.0,0.00013859,2]
[332168177,1720999836795,-500.0,0.00013859,2]
[332168178,1720999836805,-500.0,0.00013859,2]
[332168179,1720999836815,-500.0,0.00013859,2]
[332168180,1720999836825,-500.0,0.00013859,2]
[332168181,1720999836835,-500.0,0.00013859,2]
[332168182,1720999836847,-500.0,0.00013859,2]
[332168183,1720999836857,-500.0,0.00013859,2]
[332168184,1720999836868,-500.0,0.00013859,2]
[332168185,1720999836878,-500.0,0.00013859,2]
[332168186,1720999836890,-500.0,0.00013859,2]
[332168187,1720999836900,-500.0,0.00013859,2]
[332168188,1720999836911,-500.0,0.00013859,2]
[332168189,1720999836923,-1387.9327,0.0001386,2]
[332168190,1720999836934,-500.0,0.00013863,2]
[332168191,1720999836945,-500.0,0.00013863,2]
[332168192,1720999836955,-500.0,0.00013863,2]
[332168193,1720999836966,-569.8,0.00013863,2]
[332168194,1720999836976,-500.0,0.00013863,2]
[332168195,1720999836986,-549.3,0.00013863,2]
[332168196,1720999836996,-500.0,0.00013863,2]
[332168197,1720999837247,-500.0,0.00013863,2]
[332168198,1720999837262,-500.0,0.00013863,2]
[332168199,1720999837271,-1375.7,0.00013863,2]
[332168201,1720999837281,-575.07,0.00013863,2]
[332168203,1720999837291,-674.94,0.00013863,2]
[332168205,1720999837300,-739.61,0.00013863,2]
[332168207,1720999837309,-500.0,0.00013863,2]
[332168209,1720999837318,-500.0,0.00013863,2]
[332168211,1720999837328,-500.0,0.00013863,2]
[332168212,1720999837338,-500.0,0.00013885,2]
[332168213,1720999837348,-500.0,0.00013885,2]
[332168215,1720999837357,-554.43,0.00013885,2]
[332168216,1720999837366,-500.0,0.00013885,2]
[332168217,1720999837375,-272.100141,0.00013888,2]
[332168218,1720999837384,-183.357989,0.00013888,2]
[332168219,1720999837394,-500.0,0.00013888,2]
[332168220,1720999837403,-200.0,0.00013888,2]
[332168221,1720999837412,-207.60000002,0.0001389,3]
[332168222,1720999837421,-1000.0,0.0001389,2]
[332168223,1720999837430,-500.0,0.00013898,2]
[332168224,1720999837439,-500.0,0.00013898,2]
[332168225,1720999837449,-215.19730329,0.00013898,2]
[332168226,1720999837458,-1000.0,0.000139,2]
[332168227,1720999837468,-22161.028,0.000139,2]
[332168228,1720999837477,-3245.5692,0.000139,2]
[332168229,1720999837487,-6497.7158,0.000139,2]
[332168230,1720999837496,-219.6763,0.000139,2]
[332168231,1720999837505,-643.32568416,0.000139,2]
[332168232,1720999837515,-1000.0,0.000139,2]
[332168233,1720999837524,-207.60000002,0.00013904,3]
[332168234,1720999837533,-500.0,0.00013914,2]
[332168235,1720999837543,-500.0,0.00013914,2]
[332168236,1720999837552,-606.38,0.00013914,2]
[332168237,1720999837561,-500.0,0.00013914,2]
[332168238,1720999837571,-500.0,0.00013914,2]
[332168239,1720999837580,-150.0,0.00013914,2]
[332168240,1720999837589,-500.0,0.00013914,2]
[332168241,1720999837600,-551.05,0.00013914,2]
[332168242,1720999837609,-500.0,0.00013914,2]
[332168243,1720999837619,-500.0,0.00013914,2]
[332168244,1720999837628,-713.5,0.00013914,2]
[332168245,1720999837637,-262.55973327,0.00013914,2]
[332168246,1720999837646,-500.0,0.00013914,2]
[332168247,1720999837655,-500.0,0.00013914,2]
[332168248,1720999837665,-500.0,0.00013914,2]
[332168249,1720999837674,-500.0,0.00013914,2]
[332168250,1720999837683,-500.0,0.00013914,2]
[332168251,1720999837695,-500.0,0.00013914,2]
[332168252,1720999837705,-500.0,0.00013914,2]
[332168253,1720999837714,-500.0,0.00013914,2]
[332168254,1720999837724,-500.0,0.00013914,2]
[332168255,1720999837734,-558.45,0.00013914,2]
[332168256,1720999837744,-500.0,0.00013914,2]
[332168257,1720999837753,-462.66224699,0.00013914,2]
[332168258,1720999837763,-500.0,0.00013914,2]
[332168259,1720999837772,-500.0,0.00013914,2]
[332168260,1720999837781,-486.64902776,0.00013914,2]
[332168261,1720999837790,-500.0,0.00013914,2]
[332168262,1720999837800,-500.0,0.00013917,2]
[332168263,1720999837809,-500.0,0.00013917,2]
[332168264,1720999837818,-500.0,0.00013917,2]
[332168265,1720999837827,-569.8,0.00013917,2]
[332168266,1720999837836,-500.0,0.00013917,2]
[332168267,1720999837846,-549.3,0.00013917,2]
[332168268,1720999837855,-500.0,0.00013917,2]
[332168269,1720999837865,-500.0,0.00013917,2]
[332168270,1720999837875,-500.0,0.00013917,2]
[332168271,1720999837885,-1375.7,0.00013917,2]
[332168272,1720999837894,-575.07,0.00013917,2]
[332168273,1720999837905,-674.94,0.00013917,2]
[332168274,1720999837914,-739.61,0.00013917,2]
[332168276,1720999837923,-500.0,0.00013917,2]
[332168278,1720999837932,-500.0,0.00013917,2]
[332168280,1720999837942,-500.0,0.00013917,2]
[332168282,1720999837952,-500.0,0.0001394,2]
[332168284,1720999837962,-500.0,0.0001394,2]
[332168286,1720999837972,-500.0,0.0001394,2]
[332168288,1720999837982,-207.60000002,0.00013941,3]
[332168290,1720999837991,-500.0,0.00013951,2]
[332168292,1720999838002,-500.0,0.00013951,2]
[332168294,1720999838011,-500.0,0.00013951,2]
[332168296,1720999838021,-500.0,0.00013951,2]
[332168298,1720999838031,-500.0,0.00013951,2]
[332168301,1720999838042,-500.0,0.00013951,2]
[332168303,1720999838052,-500.0,0.00013951,2]
[332168305,1720999838063,-500.0,0.00013951,2]
[332168307,1720999838074,-421.23,0.00013951,2]
[332168309,1720999838084,-500.0,0.00013951,2]
[332168311,1720999838096,-500.0,0.00013951,2]
[332168313,1720999838107,-500.0,0.00013969,2]
[332168315,1720999838117,-500.0,0.00013969,2]
[332168317,1720999838126,-500.0,0.00013969,2]
[332168319,1720999838137,-500.0,0.00013969,2]
[332168321,1720999838147,-150.0,0.00013969,2]
[332168322,1720999838156,-174.22144854,0.00013969,2]
[332168324,1720999838165,-500.0,0.00013969,2]
[332168326,1720999838174,-500.0,0.00013969,2]
[332168327,1720999838183,-713.5,0.00013969,2]
[332168329,1720999838192,-500.0,0.00013969,2]
[332168331,1720999838201,-500.0,0.00013969,2]
[332168333,1720999838210,-500.0,0.00013969,2]
[332168335,1720999838221,-500.0,0.00013969,2]
[332168337,1720999838233,-323.65616168,0.00013969,2]
[332168339,1720999838243,-500.0,0.00013969,2]
[332168341,1720999838256,-500.0,0.00013969,2]
[332168343,1720999838266,-500.0,0.00013969,2]
[332168345,1720999838276,-500.0,0.00013969,2]
[332168347,1720999838287,-558.45,0.00013969,2]
[332168349,1720999838296,-500.0,0.00013969,2]
[332168351,1720999838305,-416.34998423,0.00013969,2]
[332168353,1720999838314,-526.09,0.0001397,2]
[332168355,1720999838323,-500.0,0.00013972,2]
[332168357,1720999838334,-309.6231696,0.00013972,2]
[332168360,1720999838347,-500.0,0.00013972,2]
[332168361,1720999838356,-569.8,0.00013972,2]
[332168364,1720999838366,-500.0,0.00013972,2]
[332168366,1720999838375,-549.3,0.00013972,2]
[332168368,1720999838384,-500.0,0.00013972,2]
[332168370,1720999838393,-500.0,0.00013972,2]
[332168371,1720999838402,-500.0,0.00013972,2]
[332168373,1720999838411,-1375.7,0.00013972,2]
[332168375,1720999838421,-575.07,0.00013972,2]
[332168377,1720999838431,-674.94,0.00013972,2]
[332168379,1720999838440,-739.61,0.00013972,2]
[332168381,1720999838449,-500.0,0.00013972,2]
[332168383,1720999838458,-253.62954863,0.00013972,2]
[332168385,1720999838467,-1000.0,0.00013973,5]
[332168387,1720999838477,-33696.3666581,0.0001398,3]
[332168389,1720999838486,-13478.5466632,0.0001398,3]
[332168391,1720999838495,-6739.27333162,0.00013985,3]
[332168393,1720999838504,-6739.27333162,0.00013986,3]
[332168395,1720999838513,-6739.27333162,0.00013989,3]
[332168397,1720999838523,-190.85340652,0.00013989,2]
[332168399,1720999838532,-162499.93481191,0.0001399,3]
[332168405,1720999838576,-399.12662878,0.0001399,3]
[332168407,1720999838587,-7437.2549129,0.0001399,3]
[332168410,1720999838602,-4670.58140367,0.0001399,3]
[332168412,1720999838613,-214.20886474,0.0001399,3]
[332168414,1720999838622,-2283.19662203,0.0001399,3]
[332168416,1720999838639,-334.50747262,0.0001399,3]
[332168438,1720999838831,-529.42495202,0.00013516,2]
[332168440,1720999838840,-500.0,0.00013972,2]
[332168441,1720999838850,-3641.2040372,0.0001399,3]
[332168517,1720999839707,-321.13345737,0.0001399,3]
[332168520,1720999839720,-159.2317424,0.0001399,3]
[332168522,1720999839731,-391.01499905,0.00013995,2]
[332168525,1720999839748,-108.98500095,0.00013995,2]
[332168527,1720999839758,-390.738709,0.00013995,2]
[332168541,1720999839886,-109.261291,0.00013995,2]
[332168543,1720999839895,-500.0,0.00013995,2]
[332168545,1720999839905,-1390.738709,0.00013996,2]
[332168648,1720999842824,-500.0,0.00013698,2]
[332168649,1720999842834,-500.0,0.00013753,2]
[332168650,1720999842844,-500.0,0.00013808,2]
[332168651,1720999842855,-378.31717133,0.00013859,2]
[332168652,1720999842864,-500.0,0.00013863,2]
[332168653,1720999842875,-500.0,0.00013917,2]
[332168654,1720999842885,-98.93179295,0.00013972,2]
[332168655,1720999842898,-401.06820705,0.00013972,2]
[332168656,1720999842907,-154.4996227,0.00013996,2]
[332168657,1720999842917,-191.32431679,0.00013996,2]
[332168658,1720999842931,-313.51,0.00013996,2]
[332168659,1720999843030,-2926.34765161,0.00013996,2]
[332168660,1720999843041,-2746.3150872,0.00013996,2]
[332168661,1720999843051,-8016.539964,0.00013996,2]
[332168662,1720999843062,-277.36441768,0.00013999,2]
[332168663,1720999843072,-155.30809149,0.00013999,2]
[332168664,1720999843082,-263.75418329,0.00013999,2]
[332168665,1720999843092,-231006.89388505,0.00014,2]
[332168671,1720999845598,-1460.45803348,0.00013281,2]
[332168672,1720999845608,-500.0,0.00013698,2]
[332168673,1720999845617,-369.43044199,0.00013736,2]
[332168674,1720999845626,-500.0,0.00013753,2]
[332168675,1720999845636,-500.0,0.00013808,2]
[332168676,1720999845645,-500.0,0.00013863,2]
[332168677,1720999845654,-500.0,0.00013917,2]
[332168678,1720999845665,-500.0,0.00013972,2]
[332168679,1720999845675,-449.9840873,0.00014,2]
[332168680,1720999845744,-2297.88947265,0.00014,2]
[332168681,1720999845756,-118539.89795554,0.00014,2]
[332168682,1720999845766,-492344.48875042,0.00014,2]
[332168791,1720999921553,1859.0,0.00027,120]
[332168806,1721000021026,3000.0,0.00027,120]
[332168807,1721000068901,151.0,0.00019882,120]
[332168817,1721000160129,2335.37,0.00018849,30]
[332168828,1721000485381,503.0,0.00027,120]
[332168830,1721000648481,151.0,0.00020469,120]
[332168831,1721000707659,2140.75,0.00018849,30]
[332168838,1721001019358,10000.0,0.00027,120]
[332168843,1721001032145,-286.181922,0.0001025,2]
[332168844,1721001032155,-4846.28817767,0.00010442,2]
[332168845,1721001032166,-1622.15927746,0.00010442,2]
[332168846,1721001032199,-845.39999995,0.00010442,2]
[332168847,1721001032210,-159.6574217,0.00010442,2]
[332168848,1721001032220,-367.40595837,0.00010533,2]
[332168849,1721001032231,-1904.64529424,0.00010533,2]
[332168850,1721001032253,-16606.26636758,0.00010533,2]
[332168851,1721001032264,-19102.14542252,0.00010533,2]
[332168852,1721001032273,-75877.0,0.00010543,2]
[332168853,1721001032283,-366.13665381,0.00011098,2]
[332168854,1721001032292,-431.53343721,0.00011098,2]
[332168855,1721001032301,-1272.64394685,0.00011098,2]
[332168856,1721001032311,-161.87822993,0.00011098,2]
[332168857,1721001032320,-400.0,0.00011098,2]
[332168858,1721001032330,-1056.35991323,0.00011098,2]
[332168859,1721001032339,-369.43044199,0.00011098,2]
[332168860,1721001032348,-150.0,0.00011185,2]
[332168861,1721001032358,-308924.46646092,0.00011198,2]
[332168862,1721001032367,-165.34,0.00011812,2]
[332168863,1721001032376,-250.0,0.00011812,2]
[332168864,1721001032385,-250.0,0.0001183,2]
[332168865,1721001032395,-1000.0,0.00011881,2]
[332168866,1721001032404,-23900.0,0.00011965,2]
[332168867,1721001032414,-500.0,0.0001203,2]
[332168868,1721001032423,-4654.64,0.00012166,2]
[332168869,1721001032433,-4654.62,0.00012166,2]
[332168870,1721001032443,-1004.35,0.00012193,2]
[332168871,1721001032452,-16022.95,0.00012193,2]
[332168872,1721001032461,-782.57,0.00012193,2]
[332168873,1721001032472,-437.64,0.0001223,2]
[332168874,1721001032481,-499.99,0.0001223,2]
[332168875,1721001032491,-179.99,0.0001223,2]
[332168876,1721001032501,-266.32,0.0001223,2]
[332168877,1721001032510,-255.0,0.00012236,2]
[332168879,1721001032519,-347.13,0.00012258,2]
[332168881,1721001032529,-156.0,0.00012273,2]
[332168883,1721001032538,-155.0,0.00012314,2]
[332168885,1721001032547,-168.43,0.00012541,2]
[332168887,1721001032557,-158.66,0.00012651,2]
[332168889,1721001032566,-1250.0,0.00013,2]
[332168891,1721001032576,-419.63,0.00013041,2]
[332168893,1721001032585,-419.63,0.00013041,2]
[332168894,1721001032594,-419.63,0.00013041,2]
[332168896,1721001032603,-419.63,0.00013041,2]
[332168898,1721001032613,-419.63,0.00013041,2]
[332168900,1721001032622,-419.63,0.00013041,2]
[332168901,1721001032632,-418.91,0.00013041,2]
[332168902,1721001032641,-1011.47,0.00013096,2]
[332168903,1721001032650,-832.62,0.00013141,2]
[332168904,1721001032661,-419.54,0.00013141,2]
[332168905,1721001032674,-832.62,0.00013141,2]
[332168906,1721001032683,-419.63,0.00013141,2]
[332168907,1721001032692,-832.62,0.00013141,2]
[332168908,1721001032702,-832.62,0.00013141,2]
[332168909,1721001032713,-832.62,0.00013141,2]
[332168910,1721001032723,-832.62,0.00013141,2]
[332168911,1721001032732,-1708.34,0.00013141,2]
[332168912,1721001032743,-195.0533,0.00013291,2]
[332168913,1721001032753,-802.3817,0.00013291,2]
[332168914,1721001032762,-1000.0,0.00013366,2]
[332168915,1721001032772,-151.17,0.0001337,2]
[332168916,1721001032781,-527.82,0.0001337,2]
[332168917,1721001032791,-683.28,0.0001337,2]
[332168918,1721001032799,-529.19,0.0001337,2]
[332168919,1721001032808,-150.0,0.00013378,2]
[332168920,1721001032818,-1000.0,0.000134,2]
[332168921,1721001032827,-832.62,0.00013441,2]
[332168922,1721001032837,-832.62,0.00013441,2]
[332168923,1721001032847,-310.0,0.00013484,2]
[332168924,1721001032856,-3024.8994,0.00013484,2]
[332168925,1721001032865,-718.67533476,0.00013543,2]
[332168926,1721001032875,-450.20947625,0.00013688,2]
[332168927,1721001032884,-500.0,0.00013698,2]
[332168928,1721001032894,-500.0,0.00013698,2]
[332168929,1721001032903,-500.0,0.00013698,2]
[332168930,1721001032912,-576.34728958,0.00013698,2]
[332168931,1721001032921,-500.0,0.00013698,2]
[332168932,1721001032930,-500.0,0.00013698,2]
[332168933,1721001032940,-500.0,0.00013698,2]
[332168934,1721001032950,-500.0,0.00013698,2]
[332168935,1721001032959,-500.0,0.00013698,2]
[332168936,1721001032968,-500.0,0.00013698,2]
[332168937,1721001032978,-500.0,0.00013698,2]
[332168938,1721001032987,-500.0,0.00013698,2]
[332168939,1721001032996,-500.0,0.00013698,2]
[332168940,1721001033005,-212.99189816,0.00013698,2]
[332168941,1721001033015,-500.0,0.00013698,2]
[332168942,1721001033024,-500.0,0.00013698,2]
[332168943,1721001033034,-335.57501686,0.00013698,2]
[332168944,1721001033043,-500.0,0.00013698,2]
[332168945,1721001033052,-500.0,0.00013698,2]
[332168946,1721001033062,-500.0,0.00013698,2]
[332168947,1721001033071,-500.0,0.00013698,2]
[332168948,1721001033081,-586.44,0.00013698,2]
[332168949,1721001033090,-500.0,0.00013698,2]
[332168950,1721001033099,-396.40893204,0.00013698,2]
[332168951,1721001033108,-500.0,0.00013698,2]
[332168952,1721001033117,-624.31,0.00013698,2]
[332168953,1721001033127,-601.06,0.00013698,2]